Cogmind - Beta 14 *** ADVENTURER MODE // 2024.08.07 @ 22:40:58 Player: Plaidstone Result: Destroyed by G-47 Trooper with Particle Gun Performance ------------- Evolutions (2) 1000 Regions Visited (8) 1600 Robots Destroyed (93) 465 Value Destroyed (3606) 3606 Prototype IDs (53) 1060 Alien Tech Used (0) 0 Bonus (2526) 2526 TOTAL SCORE: 10257 Bonus ------- High Alert Combat Kills 634 Follower Combat Kills 192 Entered Garrisons 400 Used RIF Installer 1000 Aligned with FarCom 300 Cogmind --------- Core Integrity 0/550 Matter 300/300 Energy 150/150 System Corruption 4% Temperature Cool (9) Movement Flying (105) Ox1 Location -8/Garrison Parts ------- > --- POWER (1) -------- Micro Nuclear Core > --- PROPULSION (4) --- Improved VTOL Module > --- UTILITY (4) ------ Small Storage Unit Weight Redist. System Hacking Suite Relay Coupler [Sentry] (22) > --- WEAPON (2) ------- Scythe > --- INVENTORY (8) ---- Actuator Array Improved Transmission Jammer Hacking Suite System Shield Trap Reconfigurator Decoy Drone Bay (16/16) Remote Datajack Peak State ------------ > --- POWER ------------ Light Deuterium Engine > --- PROPULSION ------- Flight Unit Cesium-ion Thruster Cesium-ion Thruster Improved VTOL Module > --- UTILITY ---------- Small Storage Unit Melee Analysis Suite Hacking Suite Trap Reconfigurator > --- WEAPON ----------- Katana Scythe > --- INVENTORY -------- Weight Redist. System Actuator Array Hardlight Generator Hacking Suite System Shield Decoy Drone Bay Improved Datajack [Rating: 39] Favorites ----------- Power Light Nuclear Core Engine Light Ion Engine Power Core Light Nuclear Core Propulsion Flight Unit Treads Light Treads Leg Aluminum Leg Hover Unit Hover Unit Flight Unit Flight Unit Utility Small Storage Unit Device Weight Redist. System Storage Small Storage Unit Processor Melee Analysis Suite Hackware Hacking Suite Protection Hardened Light Armor Plating Weapon Scythe Energy Gun Medium Laser Ballistic Gun Light Assault Rifle Special Weapon Remote Datajack Impact Weapon Flail Slashing Weapon Scythe Special Melee Weapon Datajack Build | -11 -10 -10 -10 -9 -8 -8 -8 -8 ------- Run | Yrd Mat Min Exi Min Mat Gar Mat Gar Slots Evolved 4 | . . . . . 4 . . . Power . | . . . . . . . . . Propulsion 2 | . . . . . 2 . . . Utility 2 | . . . . . 2 . . . Weapon . | . . . . . . . . . Parts Attached 159 | 6 30 11 1 7 53 46 1 4 Power 32 | 1 3 4 . 2 7 11 1 3 Engine 18 | 1 2 4 . 2 5 2 1 1 Core 14 | . 1 . . . 2 9 . 2 Reactor . | . . . . . . . . . Propulsion 45 | 2 6 5 . 2 16 14 . . Treads 1 | . . . . . 1 . . . Leg 10 | 2 3 3 . . 2 . . . Wheel . | . . . . . . . . . Hover 1 | . 1 . . . . . . . Flight 33 | . 2 2 . 2 13 14 . . Utility 42 | 1 4 1 . . 22 14 . . Device 31 | . 1 1 . . 18 11 . . Storage 3 | 1 1 . . . 1 . . . Processor 3 | . 1 . . . 2 . . . Hackware 4 | . . . . . 1 3 . . Protection 1 | . 1 . . . . . . . Artifact . | . . . . . . . . . Weapon 40 | 2 17 1 1 3 8 7 . 1 Energy Gun 12 | 1 11 . . . . . . . Energy Cannon . | . . . . . . . . . Ballistic Gun 1 | 1 . . . . . . . . Ballistic Cannon . | . . . . . . . . . Launcher . | . . . . . . . . . Special Weapon 4 | . 1 . . . . 3 . . Impact Weapon 1 | . 1 . . . . . . . Slashing Weapon 14 | . . 1 . 2 7 3 . 1 Piercing Weapon . | . . . . . . . . . Special Melee Weapon 8 | . 4 . 1 1 1 1 . . Unidentified Prototypes 2 | . . . . . 2 . . . Parts Lost 26 | . 4 2 . . 7 9 . 4 Power 5 | . 1 2 . . . 2 . . Propulsion 16 | . 2 . . . 5 6 . 3 Utility 2 | . . . . . 1 1 . . Weapon 3 | . 1 . . . 1 . . 1 Highest Loss Streak 4 | . 4 1 . . 2 3 . 3 To Critical Strikes . | . . . . . . . . . Average Slot Usage (%) 92 | . 93 98 100 100 84 93 100 92 Engine 6 | . 8 13 14 14 5 1 4 4 Core 4 | . 3 . . . 3 7 4 4 Leg 7 | . 22 26 . . . . . . Flight 18 | . 1 1 28 28 20 30 36 28 Device 7 | . 1 . 14 14 9 8 9 9 Storage 10 | . 13 14 14 14 8 9 9 9 Processor 9 | . 7 13 . . 13 8 . . Hackware 4 | . . . . . 4 9 18 18 Energy Gun 4 | . 21 2 . . . . . . Impact Weapon 2 | . . 14 14 . . . . . Slashing Weapon 13 | . . 11 . 17 16 17 9 18 Special Melee Weapon 1 | . 2 . 13 10 1 . . . Peak Build Rating 39 | 6 10 13 13 15 33 39 32 32 Average Rating 20 | 3 7 11 11 12 24 30 32 30 On Entrance 16 | . 6 9 13 11 13 32 32 32 Naked Turns . | . . . . . . . . . Heaviest Build 20 | 12 19 15 13 13 19 19 20 20 Greatest Support 31 | 20 20 20 14 14 31 25 23 23 Greatest Overweight (x) 3 | . 3 3 . . 1 2 . . Average Overweight (x) . | . . . . . . . . . Largest Inventory Capacity 8 | 8 8 8 8 8 8 8 8 8 Average Capacity 7 | 6 7 8 8 8 7 8 8 8 Most Carried 8 | 5 8 8 8 8 8 8 8 8 Average Carried 7 | 2 7 7 7 7 7 7 8 8 Final Capacity 8 | 8 8 8 8 8 8 8 8 8 Final Carried 8 | 2 8 7 8 8 8 8 8 8 Class Distribution -------------------- 28% | Mutant 25% | Scavenger-Sprinter 14% | Scavenger-Mutant 13% | Hacker-Sprinter 11% | Scavenger-Gladiator 5% | Hacker-Gladiator Dominant Class ---------------- Mutant | -10/Materials Mutant | -10/Mines Scavenger-Mutant | -10/Exiles Scavenger-Mutant | -9/Mines Scavenger-Gladiator | -8/Materials Scavenger-Sprinter | -8/Garrison Scavenger-Sprinter | -8/Materials Scavenger-Sprinter | -8/Garrison Resources | -11 -10 -10 -10 -9 -8 -8 -8 -8 ----------- Run | Yrd Mat Min Exi Min Mat Gar Mat Gar Matter Collected 1888 | 214 330 137 . 80 515 504 . 108 Remotely . | . . . . . . . . . Salvage Created 3595 | . 894 244 . 45 1222 1091 . 99 Parts 206 | . 39 11 . 5 76 67 . 8 Haulers Intercepted 7 | . 2 . . . 5 . . . Recyclers Shooed 2 | . 2 . . . . . . . Parts Field Recycled . | . . . . . . . . . Retrieved Matter . | . . . . . . . . . Parts Self-Destructed . | . . . . . . . . . Prevented . | . . . . . . . . . Kills | -11 -10 -10 -10 -9 -8 -8 -8 -8 ------- Run | Yrd Mat Min Exi Min Mat Gar Mat Gar Combat Hostiles Destroyed 76 | . 8 12 . 3 22 29 . 2 Melee 65 | . . 9 . 3 22 29 . 2 Guns 11 | . 8 3 . . . . . . Classes Destroyed 13 | . 4 2 . . 5 1 . 1 Worker 1 | . . . . . 1 . . . Hauler 7 | . 2 . . . 5 . . . Recycler 5 | . 5 . . . . . . . Operator 2 | . . . . . 2 . . . Watcher 7 | . 3 . . . 4 . . . Swarmer 24 | . . 3 . 3 8 10 . . Grunt 28 | . 8 4 . . 5 11 . . Brawler 2 | . . . . . 1 1 . . Sentry 10 | . . . . . 6 4 . . Specialist 1 | . . . . . . . . 1 Hunter 2 | . . . . . 2 . . . Programmer 4 | . . . . . . 3 . 1 Assembled 5 | . . 5 . . . . . . Best Kill Streak 4 | . 3 3 . 3 3 4 . 1 Combat Bots Only 4 | . 2 3 . 3 3 4 . 1 Max Kills in Single Turn 2 | . 1 2 . 1 1 1 . 1 Gunslinging . | . . . . . . . . . Exploded . | . . . . . . . . . Melee 2 | . . 2 . 1 1 1 . 1 Uniques/NPCs Destroyed . | . . . . . . . . . Combat | -11 -10 -10 -10 -9 -8 -8 -8 -8 -------- Run | Yrd Mat Min Exi Min Mat Gar Mat Gar Hostile Shots Fired 382 | . 59 48 . 15 96 146 . 18 Missed 134 | . 14 13 . 3 44 53 . 7 Damage Taken 2308 | . 386 312 . 69 445 959 . 137 Core 792 | . 101 109 . 24 171 330 . 57 Absorbed by Shields 16 | . . . . . . 16 . . Ignored by Resistances 693 | . 118 94 . 25 129 288 . 39 Regen/Repaired (Parts) 114 | . 48 . . . 66 . . . Core Remaining (%) 53 | 100 . . . 6 . . . . Volleys Fired 88 | . 65 7 . . . 16 . . Largest 2 | . 2 1 . . . 1 . . Hottest 90 | . 90 50 . . . 5 . . Shots Fired 126 | . 103 7 . . . 16 . . Gun 110 | . 103 7 . . . . . . Cannon . | . . . . . . . . . Launcher . | . . . . . . . . . Special 16 | . . . . . . 16 . . Kinetic 4 | . 4 . . . . . . . Thermal 93 | . 86 7 . . . . . . Explosive . | . . . . . . . . . Electromagnetic 13 | . 13 . . . . . . . Robot Hit Streak 18 | . 17 2 . . . 18 . . Robot Miss Streak 2 | . 2 2 . . . . . . Penetration Max . | . . . . . . . . . Secondary Targets 1 | . 1 . . . . . . . Max Gunslinging Chain 1 | . 1 . . . . . . . Shots Hit Robots 312 | . 89 22 16 16 79 83 . 7 Core Hits 109 | . 35 12 . 1 31 28 . 2 Critical Kills . | . . . . . . . . . Critical Parts Destroyed . | . . . . . . . . . Critical Strikes 23 | . . 2 . 2 12 7 . . Sever 23 | . . 2 . 2 12 7 . . Melee Attacks 353 | . 11 24 16 23 88 178 . 13 Impact 4 | . . 4 . . . . . . Slashing 305 | . . 20 . 14 81 177 . 13 Piercing . | . . . . . . . . . Sneak Attacks 56 | . 9 . 14 10 17 5 . 1 Combat Hostiles 9 | . . . . 1 2 5 . 1 Follow-up Attacks 19 | . . 3 . 1 3 11 . 1 Damage Inflicted 7258 | . 924 721 . 271 2747 2327 . 268 Guns 974 | . 924 50 . . . . . . Cannons . | . . . . . . . . . Explosions . | . . . . . . . . . Melee 6284 | . . 671 . 271 2747 2327 . 268 Ramming . | . . . . . . . . . Kinetic 15 | . 15 . . . . . . . Thermal 790 | . 740 50 . . . . . . Explosive . | . . . . . . . . . Electromagnetic 169 | . 169 . . . . . . . Impact 78 | . . 78 . . . . . . Slashing 6206 | . . 593 . 271 2747 2327 . 268 Piercing . | . . . . . . . . . Highest Corruption 4 | . 1 1 1 1 . 4 4 4 Average Corruption 2 | . 1 1 1 1 . 3 4 4 Corruption Purged . | . . . . . . . . . Corruption Blocked . | . . . . . . . . . Effects 69 | . 4 12 1 3 . 46 1 2 Message Errors 18 | . 1 1 1 1 . 13 . 1 Matter Fused 11 | . . 2 . . . 7 1 1 Heat Flow Errors 8 | . . . . 1 . 7 . . Energy Discharges 15 | . 3 5 . 1 . 6 . . Parts Rejected 1 | . . . . . . 1 . . Data Loss (minor) 8 | . . 1 . . . 7 . . Data Loss (major) 6 | . . 2 . . . 4 . . Alerts 2 | . . 1 . . . 1 . . Overload Shots . | . . . . . . . . . Overflow Damage 358 | . . 15 . 42 201 100 . . Projectiles . | . . . . . . . . . Explosions 1 | . . . . . . 1 . . Melee 357 | . . 15 . 42 201 99 . . Knockbacks . | . . . . . . . . . Impact . | . . . . . . . . . Kinetic . | . . . . . . . . . Secondary . | . . . . . . . . . Self-Inflicted Damage 84 | . . . . . . 84 . . Shots 1 | . . . . . . 1 . . Rammed . | . . . . . . . . . Targets Rammed . | . . . . . . . . . Kicked . | . . . . . . . . . Crushed . | . . . . . . . . . Highest Temperature 267 | . 168 40 . 265 7 267 . . Average Temperature 66 | . 52 19 . 131 7 97 . . Received Heat Transfer 852 | . 282 96 . 6 153 234 . 81 Effects 1 | . . . . . . 1 . . Energy Bleed 1 | . . . . . . 1 . . Siege Activations . | . . . . . . . . . Robots Corrupted . | . . . . . . . . . Combat Hostiles . | . . . . . . . . . Parts Fried . | . . . . . . . . . Impact Corruptions . | . . . . . . . . . Robots Melted . | . . . . . . . . . Combat Hostiles . | . . . . . . . . . Parts Melted 3 | . 3 . . . . . . . Heat Transferred 2142 | . 1994 148 . . . . . . Parts Sabotaged . | . . . . . . . . . Parts Stolen . | . . . . . . . . . Parts Stripped . | . . . . . . . . . Power Chain Reactions . | . . . . . . . . . Alert | -11 -10 -10 -10 -9 -8 -8 -8 -8 ------- Run | Yrd Mat Min Exi Min Mat Gar Mat Gar Peak Influence 2481 | . 198 111 . 130 373 2481 1041 675 Initial 1041 | . . . . . . 63 1041 592 Average 383 | . 49 25 . 81 165 907 1041 638 Maximum Alert Level 5 | . . . . . 1 5 3 2 Low Security (%) 59 | 100 100 100 . 100 64 13 . . Level 1 15 | . . . . . 35 17 . . Level 2 7 | . . . . . . 17 . 100 Level 3 7 | . . . . . . 21 100 . Level 4 3 | . . . . . . 10 . . Level 5 6 | . . . . . . 19 . . High Security . | . . . . . . . . . Max Security . | . . . . . . . . . Squads Dispatched 12 | . 2 2 . . 8 . . . Investigation 8 | . 2 2 . . 4 . . . Extermination . | . . . . . . . . . Reinforcement 1 | . . . . . 1 . . . Assault . | . . . . . . . . . Garrison 3 | . . . . . 3 . . . Intercept . | . . . . . . . . . Searches Triggered . | . . . . . . . . . Construction Impeded . | . . . . . . . . . Haulers Reinforced . | . . . . . . . . . Active Scanning Responses . | . . . . . . . . . Cargo Convoy Interrupts . | . . . . . . . . . Stealth | -11 -10 -10 -10 -9 -8 -8 -8 -8 --------- Run | Yrd Mat Min Exi Min Mat Gar Mat Gar Distress Signals 7 | . 1 . . . 6 . . . Communications Jammed . | . . . . . . . . . Distress Signals . | . . . . . . . . . Times Spotted 130 | . 18 13 . 7 46 42 . 4 Peak Tracking Total 6 | . 5 3 . 4 6 5 . 5 Tactical Retreats 22 | . 2 1 . 2 8 9 . . Traps | -11 -10 -10 -10 -9 -8 -8 -8 -8 ------- Run | Yrd Mat Min Exi Min Mat Gar Mat Gar Traps Triggered 10 | . . . . . . 9 . 1 Indirectly . | . . . . . . . . . Trap Hack Attempts . | . . . . . . . . . Triggered . | . . . . . . . . . Disarmed . | . . . . . . . . . Reprogrammed . | . . . . . . . . . Reused 11 | . . . . . 6 5 . . Traps Reconfigurated 16 | . . . . . 8 8 . . Traps Extracted . | . . . . . . . . . Installed . | . . . . . . . . . Triggered 11 | . . . . . 6 5 . . Machines | -11 -10 -10 -10 -9 -8 -8 -8 -8 ---------- Run | Yrd Mat Min Exi Min Mat Gar Mat Gar Machines Disabled 7 | . . . . . 1 6 . . Max in Single Turn 2 | . . . . . 1 2 . . Garrison Relay 4 | . . . . . . 4 . . Phase Generator 1 | . . . . . . 1 . . Machines Repaired . | . . . . . . . . . Machines Dismantled . | . . . . . . . . . Machines Sabotaged . | . . . . . . . . . Overloaded Fab Kills . | . . . . . . . . . Hacking | -11 -10 -10 -10 -9 -8 -8 -8 -8 --------- Run | Yrd Mat Min Exi Min Mat Gar Mat Gar Machines Accessed 36 | . 8 3 5 1 16 2 1 . Terminals 20 | . 6 2 . . 10 2 . . Fabricators . | . . . . . . . . . Repair Stations 3 | . 1 . . . 2 . . . Recycling Units 2 | . 1 . . . 1 . . . Scanalyzers 2 | . . . . . 2 . . . Garrison Access 2 | . . . . . 1 . 1 . Total Hacks 168 | . 37 9 50 1 64 6 1 . Successful 128 | . 24 6 50 1 44 2 1 . Failed 40 | . 13 3 . . 20 4 . . Catastrophic 8 | . 2 . . . 3 3 . . Database Lockouts . | . . . . . . . . . Manual 13 | . . 1 1 . 8 3 . . Terminals 80 | . 27 8 . . 39 6 . . Fabricators . | . . . . . . . . . Repair Stations 23 | . 9 . . . 14 . . . Recycling Units 2 | . 1 . . . 1 . . . Scanalyzers 8 | . . . . . 8 . . . Garrison Access 3 | . . . . . 2 . 1 . Terminal Hacks 98 | . 15 6 50 1 24 2 . . Record 53 | . 1 2 49 . 1 . . . Prototype ID Bank 10 | . 4 . . . 6 . . . Open Door 2 | . . 1 . 1 . . . . Branch Access Points 1 | . . . . . 1 . . . Emergency Access Points 3 | . . . . . 2 1 . . Scanalyzer Index 1 | . . . . . 1 . . . Alert Level 6 | . 1 . . . 5 . . . Unreport Threat 1 | . . . . . 1 . . . Locate Traps 2 | . 1 . . . 1 . . . Dispatch Records 3 | . 2 . . . 1 . . . Maintenance Status 3 | . 2 . . . 1 . . . Patrol Status 1 | . . 1 . . . . . . Transport Status 1 | . . . . . 1 . . . Investigation Status 1 | . 1 . . . . . . . Hauler Manifests 3 | . 1 . . . 2 . . . Registered Components 2 | . 1 . . . 1 . . . Registered Prototypes 1 | . 1 . . . . . . . Zone Layout 2 | . . 2 . . . . . . Patrol Navigation 1 | . . . . . . 1 . . Derelict Proto ID Bank 1 | . . . 1 . . . . . Fabricator Hacks . | . . . . . . . . . Repair Station Hacks 19 | . 8 . . . 11 . . . Scan Component 10 | . 4 . . . 6 . . . Repair 8 | . 4 . . . 4 . . . Refit 1 | . . . . . 1 . . . Recycling Unit Hacks 2 | . 1 . . . 1 . . . Report Inventory 2 | . 1 . . . 1 . . . Scanalyzer 6 | . . . . . 6 . . . Insert Component 4 | . . . . . 4 . . . Analyze 2 | . . . . . 2 . . . Garrison Access Hacks 3 | . . . . . 2 . 1 . Unlock Access 2 | . . . . . 1 . 1 . Coupler Status 1 | . . . . . 1 . . . Unauthorized Hacks . | . . . . . . . . . Terminals . | . . . . . . . . . Fabricators . | . . . . . . . . . Repair Stations . | . . . . . . . . . Recycling Units . | . . . . . . . . . Scanalyzers . | . . . . . . . . . Garrison Access . | . . . . . . . . . Data Cores Recovered 1 | . . . . . 1 . . . Used 1 | . . . . . 1 . . . Hacking Detections 26 | . 8 1 . . 14 2 1 . Full Trace Events 14 | . 5 1 . . 6 2 . . Feedback Events 1 | . 1 . . . . . . . Corruption 1 | . 1 . . . . . . . Feedback Blocked . | . . . . . . . . . Robot Schematics Acquired . | . . . . . . . . . Robots Built . | . . . . . . . . . Authchips . | . . . . . . . . . Time . | . . . . . . . . . Total Robot Build Rating . | . . . . . . . . . Part Schematics Acquired 2 | . . . . . 2 . . . Parts Built . | . . . . . . . . . Authchips . | . . . . . . . . . Time . | . . . . . . . . . Total Part Build Rating . | . . . . . . . . . Parts Repaired 8 | . 4 . . . 4 . . . Time 238 | . 110 . . . 128 . . . Parts Recycled . | . . . . . . . . . Recycled Matter . | . . . . . . . . . Retrieved Matter . | . . . . . . . . . Retrieved Components . | . . . . . . . . . Parts Scanalyzed 3 | . . . . . 3 . . . Part Schematics Acquired 2 | . . . . . 2 . . . Parts Damaged . | . . . . . . . . . Bothacking | -11 -10 -10 -10 -9 -8 -8 -8 -8 ------------ Run | Yrd Mat Min Exi Min Mat Gar Mat Gar Used RIF Installer 2 | . . . . . . 1 . 1 Watcher Feeds 1 | . . . . . . . . 1 Robots Hacked 30 | . 7 . 12 6 4 1 . . Non-combat 14 | . 6 . 3 2 3 . . . Combat 16 | . 1 . 9 4 1 1 . . Robot Hacks Applied 43 | . 9 . 13 7 4 10 . . parse_system 25 | . 2 . 13 6 3 1 . . no_distress 7 | . 6 . . 1 . . . . find_recycling 2 | . 1 . . . 1 . . . reboot_propulsion 1 | . . . . . . 1 . . tweak_propulsion 1 | . . . . . . 1 . . scatter_targeting 1 | . . . . . . 1 . . mark_system 1 | . . . . . . 1 . . link_complan 1 | . . . . . . 1 . . broadcast_data 1 | . . . . . . 1 . . disrupt_area 1 | . . . . . . 1 . . overload_power 1 | . . . . . . 1 . . wipe_record 1 | . . . . . . 1 . . Relay Couplers Released 16 | . . . . . . 16 . . Machine Destruction 16 | . . . . . . 16 . . Attached 3 | . . . . . . 3 . . Fabnet Peak Effective % . | . . . . . . . . . Robots Rewired 3 | . . . . . . 3 . . Allies Hacked . | . . . . . . . . . Hacks Repelled . | . . . . . . . . . Allies | -11 -10 -10 -10 -9 -8 -8 -8 -8 -------- Run | Yrd Mat Min Exi Min Mat Gar Mat Gar Total Allies 7 | . . . . 4 . 3 . . Largest Group 4 | . . . . 4 . 2 3 3 Highest-Rated Group 72 | . . . . 71 . 48 72 72 Highest-Rated Ally 31 | . . . . 31 . 24 24 24 Total Orders . | . . . . . . . . . Ally Attacks 22 | . . . . 12 . . . 10 Total Damage 365 | . . . . 102 . . . 263 Kills 5 | . . . . 2 . . . 3 Allies Corrupted . | . . . . . . . . . Allies Melted . | . . . . . . . . . Intel | -11 -10 -10 -10 -9 -8 -8 -8 -8 ------- Run | Yrd Mat Min Exi Min Mat Gar Mat Gar Robot Analysis Total . | . . . . . . . . . Derelict Logs Recovered 3 | . . 2 . 1 . . . . Drone Launches . | . . . . . . . . . Drone Recoveries . | . . . . . . . . . Exploration | -11 -10 -10 -10 -9 -8 -8 -8 -8 ------------- Run | Yrd Mat Min Exi Min Mat Gar Mat Gar Turns Passed 9087 | 55 1623 1174 296 491 2288 3029 16 115 Spaces Moved 8175 | 43 912 853 729 756 2118 2617 20 127 Core 49 | 14 35 . . . . . . . Treads 49 | . . . . . 49 . . . Legs 1592 | 29 754 754 . . 55 . . . Wheels . | . . . . . . . . . Hover 123 | . 123 . . . . . . . Flight 6362 | . . 99 729 756 2014 2617 20 127 Fastest Speed 27 | 50 120 37 37 37 27 27 29 29 Average Speed 53 | 97 123 112 37 37 39 30 29 31 Slowest Speed 280 | 120 200 280 37 37 160 175 29 34 Overloaded Moves . | . . . . . . . . . Propulsion Burnouts . | . . . . . . . . . Robots Hopped 8 | . . . . 3 5 . . . Cave-ins Triggered . | . . . . . . . . . Exploration Rate (%) 63 | 3 75 99 94 96 88 98 5 15 Regions Visited 8 Branch Regions 3 Pre-discovered Areas 2 | . . 1 1 . . . . . Known Exits Taken 4 | . 1 1 . . 1 . 1 . Unknown Exits Taken 3 | 1 . . 1 1 . . . . Scrap Searched 3 | . . 1 . 2 . . . . Spaces Dug 8 | . . . . . . 6 . 2 Terrain Destroyed 78 | . . . . . . 76 . 2 Melee 8 | . . . . . . 6 . 2 Projectile . | . . . . . . . . . AOE 70 | . . . . . . 70 . . Terrain Rammed . | . . . . . . . . . Walls Destroyed . | . . . . . . . . . Machines Disabled . | . . . . . . . . . Actions | -11 -10 -10 -10 -9 -8 -8 -8 -8 --------- Run | Yrd Mat Min Exi Min Mat Gar Mat Gar Total 12368 | 55 1304 1030 746 944 3455 4618 30 186 Wait 3365 | . 236 122 . 152 1156 1653 8 38 Move 8153 | 42 911 852 728 749 2108 2616 20 127 Hop 8 | . . . . 3 5 . . . Pick Up 71 | 7 29 5 1 4 22 2 . 1 Fast Attach 48 | 1 7 6 . . 13 18 . 3 Attach 36 | 5 15 . . . 16 . . . Detach 6 | . 3 . . . 3 . . . Swap 75 | . 8 5 1 7 24 28 1 1 Drop 97 | . 19 13 . 9 27 24 1 4 Fire 88 | . 65 7 . . . 16 . . Melee 303 | . 11 20 16 20 81 143 . 12 Ram . | . . . . . . . . . Kick . | . . . . . . . . . Crush . | . . . . . . . . . Escape Stasis 118 | . . . . . . 118 . . Rewire . | . . . . . . . . . Trap . | . . . . . . . . . Miscellaneous . | . . . . . . . . . Route ------- -11/Scrapyard -10/Materials (discovered 3 exits: *Mat x2 / *Min) -10/Mines (discovered 4 exits: *Mat x2 / *Exi / *Sub) -10/Exiles (discovered 2 exits: *Min x2) -9/Mines (discovered 2 exits: *Mat x2) -8/Materials (discovered 6 exits: [*Fac x3] / *Sto x2 / Gar) -8/Garrison (discovered 4 exits: *Mat x4) -8/Materials -8/Garrison History --------- Turn | Location | Event 8 | -11/Scrapyard | Discovered new exit (range 15) 56 | -11/Scrapyard | Entered Materials 333 | -10/Materials | Build established: Mutant 969 | -10/Materials | Discovered new exit (range 7) 975 | -10/Materials | Identified exit to Materials 1034 | -10/Materials | Lost 4 parts (1p2n1w) 1426 | -10/Materials | Discovered exit to Materials (range 7) 1473 | -10/Materials | Repaired Datajack 1506 | -10/Materials | Repaired Weight Redist. System 1533 | -10/Materials | Repaired Sml. Storage Unit 1569 | -10/Materials | Repaired Med. Laser 1653 | -10/Materials | Discovered new exit (range 6) 1660 | -10/Materials | Identified exit to Mines 1679 | -10/Materials | Entered Mines 1680 | -10/Mines | Assembled infested the area 1680 | -10/Mines | Learned location of Storage (-8) 1720 | -10/Mines | Deemed a non-threat by the Exiles lab entrance 1721 | -10/Mines | Discovered new exit (range 5) 1725 | -10/Mines | Identified exit to Exiles 1839 | -10/Mines | A weapon hastily lodged in a ceiling crevice suddenly fell to the ground 2051 | -10/Mines | Learned Materials trap positions 2135 | -10/Mines | Met a Derelict shopkeep closing up shop 2308 | -10/Mines | Learned Materials emergency access door positions 2408 | -10/Mines | Core integrity fell below 50% 2498 | -10/Mines | Discovered new exit (range 9) 2542 | -10/Mines | Identified exit to Subcaves 2617 | -10/Mines | Discovered exit to Materials (range 7) 2765 | -10/Mines | Discovered exit to Materials (range 10) 2779 | -10/Mines | Core integrity fell below 20% 2853 | -10/Mines | Entered Exiles 2859 | -10/Exiles | Discovered new exit (range 15) 2871 | -10/Exiles | Met 8R-AWN 2882 | -10/Exiles | Met EX-HEX 2917 | -10/Exiles | Met EX-DEC 2949 | -10/Exiles | Discovered new exit (range 10) 2976 | -10/Exiles | Learned location of Zion (-7) 2992 | -10/Exiles | Visited The Gauntlet 3058 | -10/Exiles | Met EX-BIN 3086 | -10/Exiles | Build established: Scavenger-Mutant 3097 | -10/Exiles | Aligned with FarCom system 3097 | -10/Exiles | Given EX-Vault access code 3106 | -10/Exiles | Opened EX-Vault 3109 | -10/Exiles | Found Trap Reconfigurator 3118 | -10/Exiles | Warned to stay clear of 0b10 Research branches 3149 | -10/Exiles | Left Exiles lab with Trap Reconfigurator 3149 | -10/Exiles | Entered Mines 3315 | -9/Mines | Found a hidden stash of uninstalled traps 3316 | -9/Mines | Learned Materials stockpile data 3319 | -9/Mines | Discovered new exit (range 7) 3322 | -9/Mines | Assisted by bots powering up and referring to "LRC-V3" 3336 | -9/Mines | Received a Mining Laser from a helpful Derelict 3436 | -9/Mines | Discovered new exit (range 11) 3459 | -9/Mines | Lost 3 allies 3563 | -9/Mines | Found the Drone Emporium 3567 | -9/Mines | Found Prototype Device 3640 | -9/Mines | Entered Materials 3640 | -8/Materials | Evolved 4 slots: Propulsion x2, Utility x2 3640 | -8/Materials | Identified Decoy Drone Bay 3641 | -8/Materials | Loaded intel: 16 trap records 3752 | -8/Materials | Discovered new exit (range 14) 4199 | -8/Materials | Build established: Scavenger-Gladiator 4266 | -8/Materials | Garrison activated, responded to threat 4501 | -8/Materials | Discovered new exit (range 5) 5319 | -8/Materials | Build established: Hacker-Gladiator 5384 | -8/Materials | Repaired Cesium-ion Thruster 5593 | -8/Materials | Repaired Katana 5653 | -8/Materials | Repaired Flight Unit 5681 | -8/Materials | Repaired Sml. Storage Unit 5713 | -8/Materials | Identified exit to Storage 5725 | -8/Materials | Discovered new exit (range 14) 5788 | -8/Materials | Discovered new exit (range 16) 5928 | -8/Materials | Identified exit to Garrison 5928 | -8/Materials | Entered Garrison 5958 | -8/Garrison | Triggered checkpoint 5986 | -8/Garrison | Garrison Relay disabled 6055 | -8/Garrison | Build established: Hacker-Sprinter 6170 | -8/Garrison | Triggered checkpoint 6177 | -8/Garrison | Discovered new exit (range 9) 6193 | -8/Garrison | Spotted B-75 Beast 6340 | -8/Garrison | Garrison Relay disabled 6478 | -8/Garrison | Lost 3 parts (1p2n) 6851 | -8/Garrison | Core integrity fell below 50% 7050 | -8/Garrison | Discovered new exit (range 12) 7074 | -8/Garrison | Discovered new exit (range 6) 7084 | -8/Garrison | Triggered checkpoint 7173 | -8/Garrison | Build established: Scavenger-Sprinter 7348 | -8/Garrison | Discovered new exit (range 7) 7351 | -8/Garrison | Installed Relay Interface Framework 7364 | -8/Garrison | Triggered checkpoint 7409 | -8/Garrison | Garrison Relay disabled 7916 | -8/Garrison | Triggered checkpoint 7937 | -8/Garrison | Garrison Relay disabled 8524 | -8/Garrison | Triggered checkpoint 8561 | -8/Garrison | Phase Generator disabled 8608 | -8/Garrison | Core integrity fell below 20% 8708 | -8/Garrison | Triggered checkpoint 8708 | -8/Garrison | Triggered checkpoint 8728 | -8/Garrison | Triggered checkpoint 8957 | -8/Garrison | Entered Materials 8957 | -8/Materials | Accompanied by 3 allies 8973 | -8/Materials | Identified exit to Garrison 8973 | -8/Materials | Entered Garrison 8973 | -8/Garrison | Accompanied by 3 allies 8982 | -8/Garrison | Expanded RIF knowledge: Watcher Feeds 9003 | -8/Garrison | P-60 Hacker assimilated allied Shotgunner 3b 9088 | -8/Garrison | Destroyed by G-47 Trooper with Particle Gun Last Messages --------------- 09018_ Shotgunner 3b destroyed. 09021_ Dropped Imp. Deuterium Engine. 09022_ Acquired Unknown Power Core. 09022_ Identified Nuclear Core. 09023_ Dropped Nuclear Core. 09024_ Acquired Imp. Deuterium Engine. 09028_ Acquired 67 matter. 09029_ Acquired 31 matter. 09031_ Dropped Remote Datajack. 09031_ Acquired Remote Datajack. 09032_ Dropped Imp. Deuterium Engine. 09033_ Acquired Mic. Nuclear Core. 09050_ Sneak attack on P-60 Hacker. 09050_ P-60 Hacker destroyed. 09053_ Acquired 10 matter. 09059_ System corrupted: Matter fused (-5). 09069_ Flight Unit destroyed. 09080_ W& 9R,CHBPWQA=BMCOISMWE/UUPW&%6IA7S 09086_ Katana destroyed. 09087_ Flight Unit destroyed. Map ----- +----------------------------------------------------+ | ???????????????????????????#!*# # !#??????#" "#??? | | ???????????????????????????#+## ##"#??????#" "#??? | | ???????????????????????????#%!# #! #??????#" "#??? | | ???????????????????????????#!!# #! #??????# ##?? | | ????????????????????????####### ############ #"### | | ????????????????????????# # | | ????????????????????????# #*[= | | ????????????????????????# ################### %## | | ????????????????????????# #?????????????????# !#? | | ????????????????????????# #?????????????????#%|#? | | ????????????????????????# #?????????????????# #? | | ????????????????????????# #?????????????????# *#? | | ????????????????????????# #?????????????????#==#? | | ????????????????????????# #?????????????????#%!#? | | ????????????????????????# #???????????????###= #? | | ????????????????????????# #???????????????# ![!#? | | ????????????????????????# #???????????????# !*[#? | | ????????????????????????# #???????????????# [#? | | ????????????????????????# #???????????????### #? | | ????????????????????????# #?????????????????# #? | | ????????????????????????# #?????????????????# #? | | ????????????????????????# #?????????????????# #? | | ????????????????????????# #?????????????????# #? | | ????????????????????????# #?????????????????# #? | | ????????????????????????# #?????????????????# #? | | ????????????????????????#@ #?????????????????# #? | | ????????????????????????#g;#?????????????????# #? | | ????????????????????????# gg ???????????????? #? | | ????????????????????????# ??????????????? #? | | ????????????????????????# ####??????????????####? | | ????????????????????????# #?????????????????????? | | ????????????????????????# #?????????????????????? | | ????????????????????????# #?????????????????????? | | ????????????????????????# #?????????????????????? | | ????????????????????????# #?????????????????????? | | ???????????????????ssss?# #?????????????????????? | | ????????????????????????# #?????????????????????? | | ???????????????????????? ?????????????????????? | | ???????????????????????? ?????????????????????? | | ???????????????????????? ?????????????????????? | | ????????????????????????# ?????????????????????? | | ?????????????????????????????????????????????????? | | ?????????????????????????????????????????????????? | | ?????????????????????????????????????????????????? | | ?????????????????????????????????????????????????? | | ?????????????????????????????????????????????????? | | ?????????????????????????????????????????????????? | | ?????????????????????????????????????????????????? | | ?????????????????????????????????????????????????? | | ?????????????????????????????????????????????????? | +----------------------------------------------------+ Best States ------------- Heat Dissipation 31 Energy Generation 16 Energy Capacity 290 Matter Stores 300 Matter Capacity 300 Sight Range 16 Terrain Scan Range 14 Terrain Scan Density 10 ECM Strength 1 Additional Mass Support 6 Armor Coverage 150 Resistance: KI 20 Resistance: TH 20 Resistance: EX 20 Resistance: EM 20 Resistance: I 20 Resistance: S 20 Resistance: P 20 Evasion (%) 64 Melee Accuracy 10 Recoil Reduction 1 Offensive Hacking 20 Relay Coupler Types 1 Relay Coupler Value 24 Item Schematics ----------------- Hacking Suite | -8/Materials | Scanalyzed Imp. Datajack | -8/Materials | Scanalyzed Robot Schematics ------------------ None Fabricated ------------ Nothing Alien Tech Used ----------------- None Achievements -------------- Ambidextrous Error 47 Challenges ------------ None Game ------ Seed XenonSniperWarhead Manual? 0 Play Time 02:25:11 Cumulative 26.1 hours Start 2024.08.07 @ 19:44:01 End 2024.08.07 @ 22:40:58 Sessions 1 Manual Loads 0 Difficulty Adventurer Special Mode None Game No. 24 Rogue 18 Adventurer 6 Explorer 0 Win Type - Total 0 Types 0/0/0/0/0/0/0/0/0 Lore% 12 Gallery% 21 Achievement% 19 Wizard Run 0 Options --------- Layout 1 ASCII 0 Keyboard 0 Movement Mouse Keybinds 0 Fullscreen 1 Font 24/Smallcaps Map View 50x35 Zoom Use 0% Tactical HUD 1 Map Filters NONE Filters NONE Steam 1 RUN: 7638f18b-4b38-4bde-9107-6443eed95e0f